[Event "Live Chess"]
[Site "Chess.com"]
[Date "2023.05.20"]
[Round "-"]
[White "Missedidea"]
[Black "LiamBellwood"]
[Result "1-0"]
[WhiteElo "1809"]
[BlackElo "2064"]
[TimeControl "300"]
[EndTime "15:55:03 PDT"]
[Termination "Missedidea won by resignation"]

1. d4 {[%clk 0:04:56.8]} 1... e6 {[%clk 0:04:58.5]} 2. c4 {[%clk 0:04:55.8]}
2... f5 {[%clk 0:04:57.9]} 3. Nc3 {[%clk 0:04:53.3]} 3... Nf6 {[%clk 0:04:57.2]}
4. g3 {[%clk 0:04:52.4]} 4... Be7 {[%clk 0:04:55.9]} 5. Bg2 {[%clk 0:04:51.6]}
5... O-O {[%clk 0:04:55.5]} 6. Nh3 {[%clk 0:04:50.3]} 6... d6 {[%clk 0:04:54.3]}
7. O-O {[%clk 0:04:49.2]} 7... Qe8 {[%clk 0:04:46.2]} 8. e4 {[%clk 0:04:45]}
8... e5 {[%clk 0:04:41.4]} 9. dxe5 {[%clk 0:04:39.6]} 9... dxe5 {[%clk
0:04:40.5]} 10. exf5 {[%clk 0:04:28.8]} 10... Bxf5 {[%clk 0:04:32.5]} 11. Ng5
{[%clk 0:04:25.2]} 11... c6 {[%clk 0:04:24.3]} 12. Re1 {[%clk 0:04:10.1]} 12...
Bc5 {[%clk 0:04:03.3]} 13. Be3 {[%clk 0:03:57.7]} 13... Bb4 {[%clk 0:03:55]} 14.
Qb3 {[%clk 0:03:48.8]} 14... Bxc3 {[%clk 0:03:48.1]} 15. Qxc3 {[%clk 0:03:46.3]}
15... h6 {[%clk 0:03:37.3]} 16. Nf3 {[%clk 0:03:43.1]} 16... e4 {[%clk
0:03:23.3]} 17. Bc5 {[%clk 0:03:22.8]} 17... Rf7 {[%clk 0:02:57.2]} 18. Ne5
{[%clk 0:03:14.1]} 18... Rc7 {[%clk 0:02:35.2]} 19. Bd6 {[%clk 0:03:09.9]} 19...
Rc8 {[%clk 0:02:33.9]} 20. c5 {[%clk 0:03:04.1]} 20... Nbd7 {[%clk 0:02:30.5]}
21. Nd3 {[%clk 0:02:34.1]} 21... Nd5 {[%clk 0:02:14.7]} 22. Qb3 {[%clk
0:02:31.9]} 22... Qf7 {[%clk 0:01:57.1]} 23. Nb4 {[%clk 0:02:20.9]} 23... N7f6
{[%clk 0:01:46.7]} 24. Nxd5 {[%clk 0:02:13]} 24... cxd5 {[%clk 0:01:39.7]} 25.
Rac1 {[%clk 0:02:04.7]} 25... Qh5 {[%clk 0:01:36.9]} 26. Be7 {[%clk 0:01:35.8]}
26... Bg4 {[%clk 0:01:08.3]} 27. Bxf6 {[%clk 0:01:31.2]} 27... gxf6 {[%clk
0:01:08.2]} 28. Rxe4 {[%clk 0:01:25.3]} 28... Kf8 {[%clk 0:00:51]} 29. Rf4
{[%clk 0:01:20.4]} 29... Kg7 {[%clk 0:00:45.8]} 30. Qxd5 {[%clk 0:01:15.7]}
30... Qxd5 {[%clk 0:00:43.2]} 31. Bxd5 {[%clk 0:01:13.8]} 31... Bh3 {[%clk
0:00:35]} 32. Bxb7 {[%clk 0:01:11.2]} 32... Rd8 {[%clk 0:00:32.1]} 33. c6 {[%clk
0:01:09.4]} 1-0

[Event "Live Chess"]
[Site "Chess.com"]
[Date "2023.05.20"]
[Round "-"]
[White "Delacorta"]
[Black "KeithArkell"]
[Result "0-1"]
[WhiteElo "1429"]
[BlackElo "2608"]
[TimeControl "300"]
[EndTime "15:55:21 PDT"]
[Termination "KeithArkell won by resignation"]

1. d4 {[%clk 0:04:58]} 1... c5 {[%clk 0:04:58.9]} 2. Nf3 {[%clk 0:04:56.6]} 2...
cxd4 {[%clk 0:04:58.2]} 3. Nxd4 {[%clk 0:04:55.9]} 3... Nc6 {[%clk 0:04:57.6]}
4. Nxc6 {[%clk 0:04:53.8]} 4... bxc6 {[%clk 0:04:57.5]} 5. e4 {[%clk 0:04:51.9]}
5... d6 {[%clk 0:04:56.2]} 6. Nd2 {[%clk 0:04:50.9]} 6... Nf6 {[%clk 0:04:54.8]}
7. b3 {[%clk 0:04:42.2]} 7... g6 {[%clk 0:04:53.6]} 8. Bb2 {[%clk 0:04:40.9]}
8... Bg7 {[%clk 0:04:53.1]} 9. Be2 {[%clk 0:04:35.4]} 9... Nh5 {[%clk
0:04:50.2]} 10. Bxg7 {[%clk 0:04:33]} 10... Nxg7 {[%clk 0:04:49.4]} 11. O-O
{[%clk 0:04:29.3]} 11... Ne6 {[%clk 0:04:48.2]} 12. Nf3 {[%clk 0:04:23.3]} 12...
O-O {[%clk 0:04:46.3]} 13. Nd4 {[%clk 0:04:19.8]} 13... Nxd4 {[%clk 0:04:42.4]}
14. Qxd4 {[%clk 0:04:19.7]} 14... Qb6 {[%clk 0:04:41.7]} 15. Qxb6 {[%clk
0:04:17]} 15... axb6 {[%clk 0:04:41.6]} 16. c4 {[%clk 0:04:06.2]} 16... c5
{[%clk 0:04:38.6]} 17. Rfd1 {[%clk 0:04:01.1]} 17... Ra3 {[%clk 0:04:36.9]} 18.
h3 {[%clk 0:03:57.8]} 18... Bb7 {[%clk 0:04:36]} 19. Bf3 {[%clk 0:03:49.7]}
19... Rfa8 {[%clk 0:04:34.9]} 20. e5 {[%clk 0:03:37.7]} 20... Bxf3 {[%clk
0:04:32.1]} 21. gxf3 {[%clk 0:03:35.7]} 21... dxe5 {[%clk 0:04:31.3]} 22. Rd7
{[%clk 0:03:32.7]} 22... e6 {[%clk 0:04:15.6]} 23. Rb7 {[%clk 0:03:27.8]} 23...
Rxb3 {[%clk 0:04:13.3]} 24. axb3 {[%clk 0:03:21.7]} 24... Rxa1+ {[%clk
0:04:13.2]} 25. Kg2 {[%clk 0:03:19.9]} 25... Ra6 {[%clk 0:04:12.1]} 26. Kg3
{[%clk 0:03:14.8]} 26... Kg7 {[%clk 0:04:10.9]} 27. f4 {[%clk 0:03:08.2]} 27...
exf4+ {[%clk 0:04:10]} 28. Kxf4 {[%clk 0:03:07.6]} 28... Kf6 {[%clk 0:04:08.3]}
29. Ke4 {[%clk 0:03:05]} 29... g5 {[%clk 0:04:07.1]} 30. f4 {[%clk 0:03:03.2]}
30... gxf4 {[%clk 0:04:05.9]} 31. Kxf4 {[%clk 0:03:02.5]} 31... h5 {[%clk
0:04:02.1]} 32. h4 {[%clk 0:02:52.7]} 32... Ra1 {[%clk 0:03:57.5]} 33. Rxb6
{[%clk 0:02:50.3]} 33... Rg1 {[%clk 0:03:55.5]} 34. Rc6 {[%clk 0:02:47.1]} 34...
Rg4+ {[%clk 0:03:54.6]} 35. Kf3 {[%clk 0:02:44.8]} 35... Rxh4 {[%clk 0:03:54.1]}
36. Rxc5 {[%clk 0:02:44.1]} 36... Rh3+ {[%clk 0:03:53.4]} 37. Kg2 {[%clk
0:02:42.5]} 37... Rxb3 {[%clk 0:03:52.5]} 38. Rc8 {[%clk 0:02:39.2]} 38... h4
{[%clk 0:03:49.6]} 39. Rh8 {[%clk 0:02:34.4]} 39... h3+ {[%clk 0:03:46.4]} 40.
Rxh3 {[%clk 0:02:32.8]} 40... Rxh3 {[%clk 0:03:45.6]} 41. Kxh3 {[%clk
0:02:32.1]} 41... Ke5 {[%clk 0:03:45.3]} 0-1

[Event "Live Chess"]
[Site "Chess.com"]
[Date "2023.05.20"]
[Round "-"]
[White "fso"]
[Black "Shepherds_Pie"]
[Result "1-0"]
[WhiteElo "2230"]
[BlackElo "1919"]
[TimeControl "300"]
[EndTime "15:55:31 PDT"]
[Termination "fso won by resignation"]

1. d4 {[%clk 0:04:54.2]} 1... d5 {[%clk 0:04:56.5]} 2. c4 {[%clk 0:04:52.6]}
2... e6 {[%clk 0:04:55.5]} 3. Nc3 {[%clk 0:04:51.2]} 3... c5 {[%clk 0:04:53.6]}
4. e4 {[%clk 0:04:46.1]} 4... cxd4 {[%clk 0:04:51.4]} 5. Qxd4 {[%clk 0:04:42.2]}
5... Nc6 {[%clk 0:04:50.3]} 6. Qd1 {[%clk 0:04:40.4]} 6... Nf6 {[%clk 0:04:46]}
7. exd5 {[%clk 0:04:39.3]} 7... exd5 {[%clk 0:04:44.5]} 8. cxd5 {[%clk
0:04:38.3]} 8... Nb4 {[%clk 0:04:42.1]} 9. Bb5+ {[%clk 0:04:31.6]} 9... Bd7
{[%clk 0:04:40.1]} 10. Bxd7+ {[%clk 0:04:13.2]} 10... Qxd7 {[%clk 0:04:35.9]}
11. Nf3 {[%clk 0:04:02]} 11... Be7 {[%clk 0:04:26.4]} 12. O-O {[%clk 0:03:58.1]}
12... O-O {[%clk 0:04:24.5]} 13. Re1 {[%clk 0:03:56.3]} 13... Bd6 {[%clk
0:04:22.2]} 14. Qb3 {[%clk 0:03:51.1]} 14... Nd3 {[%clk 0:04:18.1]} 15. Rd1
{[%clk 0:03:46.3]} 15... Qf5 {[%clk 0:04:07]} 16. Nb5 {[%clk 0:03:28.3]} 16...
Nxc1 {[%clk 0:03:58.2]} 17. Raxc1 {[%clk 0:03:23.5]} 17... Bf4 {[%clk
0:03:52.3]} 18. Rc4 {[%clk 0:03:16.5]} 18... a6 {[%clk 0:03:49.8]} 19. Nc3
{[%clk 0:03:05.1]} 19... b5 {[%clk 0:03:41.2]} 20. Rcd4 {[%clk 0:02:58.2]} 20...
Rfe8 {[%clk 0:03:22.5]} 21. d6 {[%clk 0:02:52.2]} 21... Rad8 {[%clk 0:03:21.2]}
22. Nd5 {[%clk 0:02:36.8]} 22... Nxd5 {[%clk 0:03:07.7]} 23. Rxd5 {[%clk
0:02:29.7]} 23... Qe6 {[%clk 0:03:02.3]} 24. g3 {[%clk 0:02:16.2]} 24... Bh6
{[%clk 0:02:52.7]} 25. Re1 {[%clk 0:01:48.4]} 25... Qd7 {[%clk 0:02:49.2]} 26.
Rxe8+ {[%clk 0:01:42.4]} 26... Rxe8 {[%clk 0:02:47.9]} 27. Ne5 {[%clk
0:01:41.5]} 27... Qf5 {[%clk 0:02:38.7]} 28. d7 {[%clk 0:01:35]} 28... Qb1+
{[%clk 0:02:32.4]} 29. Rd1 {[%clk 0:01:29.8]} 1-0

[Event "Live Chess"]
[Site "Chess.com"]
[Date "2023.05.20"]
[Round "-"]
[White "wot-not"]
[Black "Olisingapore"]
[Result "0-1"]
[WhiteElo "1531"]
[BlackElo "1848"]
[TimeControl "300"]
[EndTime "15:55:32 PDT"]
[Termination "Olisingapore won by checkmate"]

1. d4 {[%clk 0:04:57.8]} 1... Nf6 {[%clk 0:04:56.4]} 2. c4 {[%clk 0:04:55]} 2...
e6 {[%clk 0:04:48.3]} 3. Nc3 {[%clk 0:04:53.8]} 3... Bb4 {[%clk 0:04:46.9]} 4.
Qc2 {[%clk 0:04:45.7]} 4... c5 {[%clk 0:04:44.2]} 5. a3 {[%clk 0:04:40.4]} 5...
Bxc3+ {[%clk 0:04:43]} 6. bxc3 {[%clk 0:04:39.4]} 6... O-O {[%clk 0:04:40.1]} 7.
e4 {[%clk 0:04:31.3]} 7... d6 {[%clk 0:04:36.4]} 8. Bg5 {[%clk 0:04:28.1]} 8...
Nbd7 {[%clk 0:04:32.8]} 9. Nf3 {[%clk 0:04:19.9]} 9... h6 {[%clk 0:04:30.6]} 10.
Bh4 {[%clk 0:04:18.8]} 10... Qa5 {[%clk 0:04:27.5]} 11. d5 {[%clk 0:04:06.2]}
11... exd5 {[%clk 0:04:16.7]} 12. exd5 {[%clk 0:04:03.9]} 12... Nh5 {[%clk
0:04:14.3]} 13. Be2 {[%clk 0:03:50.3]} 13... Nf4 {[%clk 0:03:59.7]} 14. O-O
{[%clk 0:03:47.7]} 14... Nxe2+ {[%clk 0:03:57.6]} 15. Qxe2 {[%clk 0:03:45.9]}
15... Qxc3 {[%clk 0:03:55.6]} 16. Rfc1 {[%clk 0:03:29.6]} 16... Qa5 {[%clk
0:03:46.7]} 17. Qb2 {[%clk 0:03:23]} 17... Ne5 {[%clk 0:03:35.8]} 18. Nxe5
{[%clk 0:03:08.8]} 18... dxe5 {[%clk 0:03:35.7]} 19. Qxe5 {[%clk 0:03:06.9]}
19... f6 {[%clk 0:03:18.3]} 20. Qg3 {[%clk 0:03:02.6]} 20... Bd7 {[%clk
0:03:09.3]} 21. Re1 {[%clk 0:02:50.7]} 21... Rae8 {[%clk 0:03:04.1]} 22. Reb1
{[%clk 0:02:44.7]} 22... Bf5 {[%clk 0:02:56.4]} 23. Rxb7 {[%clk 0:02:37.4]}
23... Re1+ {[%clk 0:02:51.3]} 24. Rxe1 {[%clk 0:02:30.2]} 24... Qxe1# {[%clk
0:02:51.2]} 0-1

[Event "Live Chess"]
[Site "Chess.com"]
[Date "2023.05.20"]
[Round "-"]
[White "Singapourfeuj"]
[Black "Cimon"]
[Result "0-1"]
[WhiteElo "2189"]
[BlackElo "1860"]
[TimeControl "300"]
[EndTime "15:55:40 PDT"]
[Termination "Cimon won by resignation"]

1. d4 {[%clk 0:04:58.1]} 1... Nf6 {[%clk 0:04:58.5]} 2. c4 {[%clk 0:04:57.1]}
2... g6 {[%clk 0:04:57.3]} 3. Nc3 {[%clk 0:04:55.7]} 3... Bg7 {[%clk 0:04:55.9]}
4. e4 {[%clk 0:04:54.9]} 4... d6 {[%clk 0:04:54.9]} 5. Be2 {[%clk 0:04:54]} 5...
O-O {[%clk 0:04:53.4]} 6. Nf3 {[%clk 0:04:53.3]} 6... e5 {[%clk 0:04:51.1]} 7.
d5 {[%clk 0:04:52.8]} 7... Nbd7 {[%clk 0:04:49.3]} 8. h3 {[%clk 0:04:44.3]} 8...
h6 {[%clk 0:04:46.6]} 9. Be3 {[%clk 0:04:42.5]} 9... Ne8 {[%clk 0:04:34]} 10. g4
{[%clk 0:04:40.9]} 10... b6 {[%clk 0:04:29.5]} 11. Qc2 {[%clk 0:04:38]} 11... a5
{[%clk 0:04:25]} 12. O-O-O {[%clk 0:04:36.5]} 12... Nc5 {[%clk 0:04:18]} 13.
Rdg1 {[%clk 0:04:34.5]} 13... Bd7 {[%clk 0:04:05.8]} 14. h4 {[%clk 0:04:32.3]}
14... a4 {[%clk 0:03:36.8]} 15. Kb1 {[%clk 0:04:31.2]} 15... a3 {[%clk
0:03:33.6]} 16. b3 {[%clk 0:04:29.7]} 16... c6 {[%clk 0:03:20.8]} 17. dxc6
{[%clk 0:04:27.8]} 17... Bxc6 {[%clk 0:03:19.6]} 18. Nd5 {[%clk 0:04:26.1]}
18... Bxd5 {[%clk 0:03:16.7]} 19. cxd5 {[%clk 0:04:24.1]} 19... Rc8 {[%clk
0:03:02.4]} 20. Qd2 {[%clk 0:04:21.1]} 20... Nxe4 {[%clk 0:02:54.7]} 21. Qd3
{[%clk 0:04:19.9]} 21... Nc3+ {[%clk 0:02:51.1]} 22. Ka1 {[%clk 0:04:18.9]}
22... e4 {[%clk 0:02:43.7]} 0-1

[Event "Live Chess"]
[Site "Chess.com"]
[Date "2023.05.20"]
[Round "-"]
[White "HoarseyHorsey"]
[Black "stevochess11"]
[Result "0-1"]
[WhiteElo "1427"]
[BlackElo "1741"]
[TimeControl "300"]
[EndTime "15:55:41 PDT"]
[Termination "stevochess11 won by checkmate"]

1. d4 {[%clk 0:04:58.2]} 1... Nf6 {[%clk 0:04:57.2]} 2. c4 {[%clk 0:04:57.4]}
2... c5 {[%clk 0:04:55.9]} 3. d5 {[%clk 0:04:56.4]} 3... b5 {[%clk 0:04:55]} 4.
cxb5 {[%clk 0:04:52.9]} 4... a6 {[%clk 0:04:53.9]} 5. e3 {[%clk 0:04:52.2]} 5...
e6 {[%clk 0:04:48.4]} 6. Nc3 {[%clk 0:04:49.3]} 6... Nxd5 {[%clk 0:04:42]} 7.
Nxd5 {[%clk 0:04:48]} 7... exd5 {[%clk 0:04:39.7]} 8. Qxd5 {[%clk 0:04:46.2]}
8... Ra7 {[%clk 0:04:32.7]} 9. Nf3 {[%clk 0:04:30.6]} 9... axb5 {[%clk
0:04:28.4]} 10. Bxb5 {[%clk 0:04:23.2]} 10... Bb7 {[%clk 0:04:25.9]} 11. Qd1
{[%clk 0:04:03.5]} 11... Qa5+ {[%clk 0:04:24.3]} 12. Bd2 {[%clk 0:04:01.4]}
12... Qxb5 {[%clk 0:04:23.3]} 13. Bc3 {[%clk 0:03:56.8]} 13... Bxf3 {[%clk
0:04:15.7]} 14. Qxf3 {[%clk 0:03:55.5]} 14... Nc6 {[%clk 0:04:13.2]} 15. O-O-O
{[%clk 0:03:52.3]} 15... Be7 {[%clk 0:04:08.6]} 16. Bxg7 {[%clk 0:03:50]} 16...
Rg8 {[%clk 0:04:07.5]} 17. Bc3 {[%clk 0:03:43.4]} 17... Rxa2 {[%clk 0:04:05.9]}
18. Kd2 {[%clk 0:03:24.3]} 18... Nb4 {[%clk 0:03:51.6]} 19. Ra1 {[%clk
0:03:14.6]} 19... Qd3+ {[%clk 0:03:48]} 20. Ke1 {[%clk 0:03:07.8]} 20... Nc2#
{[%clk 0:03:44.9]} 0-1

[Event "Live Chess"]
[Site "Chess.com"]
[Date "2023.05.20"]
[Round "-"]
[White "birdseed45"]
[Black "sanjesh_ananda"]
[Result "1-0"]
[WhiteElo "1864"]
[BlackElo "1081"]
[TimeControl "300"]
[EndTime "15:55:43 PDT"]
[Termination "birdseed45 won on time"]

1. e4 {[%clk 0:04:58.7]} 1... e5 {[%clk 0:04:57.9]} 2. Nf3 {[%clk 0:04:57.6]}
2... Nc6 {[%clk 0:04:56.6]} 3. Bb5 {[%clk 0:04:56]} 3... Nf6 {[%clk 0:04:52.2]}
4. O-O {[%clk 0:04:54]} 4... a6 {[%clk 0:04:47]} 5. Ba4 {[%clk 0:04:51.1]} 5...
b5 {[%clk 0:04:36]} 6. Bb3 {[%clk 0:04:49.4]} 6... Bc5 {[%clk 0:04:30.8]} 7. h3
{[%clk 0:04:46.3]} 7... O-O {[%clk 0:04:28.3]} 8. Re1 {[%clk 0:04:45.2]} 8... d6
{[%clk 0:04:18.1]} 9. c3 {[%clk 0:04:43.9]} 9... Nh5 {[%clk 0:03:50.4]} 10. d4
{[%clk 0:04:42.2]} 10... exd4 {[%clk 0:03:42.2]} 11. cxd4 {[%clk 0:04:42.1]}
11... Bb6 {[%clk 0:03:24.3]} 12. d5 {[%clk 0:04:38.2]} 12... Ne7 {[%clk
0:03:06.3]} 13. Ng5 {[%clk 0:04:28.5]} 13... Nf6 {[%clk 0:02:39.2]} 14. Nc3
{[%clk 0:04:13.7]} 14... Ng6 {[%clk 0:02:30.4]} 15. Be3 {[%clk 0:04:02.1]} 15...
Ba5 {[%clk 0:01:48.1]} 16. Bd4 {[%clk 0:03:42.4]} 16... h6 {[%clk 0:01:41.8]}
17. Nf3 {[%clk 0:03:37.7]} 17... Nh5 {[%clk 0:01:07.2]} 18. e5 {[%clk
0:03:32.5]} 18... Nhf4 {[%clk 0:00:44.5]} 19. exd6 {[%clk 0:03:24.9]} 19... cxd6
{[%clk 0:00:40.1]} 20. a3 {[%clk 0:02:46.4]} 20... Bf5 {[%clk 0:00:22.5]} 21.
Bc2 {[%clk 0:02:42]} 21... Qc8 {[%clk 0:00:16.5]} 22. b4 {[%clk 0:02:24.2]}
22... Bxh3 {[%clk 0:00:12.1]} 23. bxa5 {[%clk 0:02:11.5]} 23... Bxg2 {[%clk
0:00:09.9]} 24. Bxg6 {[%clk 0:02:06.2]} 24... fxg6 {[%clk 0:00:05.3]} 25. Nh2
{[%clk 0:01:50.6]} 1-0

[Event "Live Chess"]
[Site "Chess.com"]
[Date "2023.05.20"]
[Round "-"]
[White "Doge_Dandolo"]
[Black "jk0110"]
[Result "1-0"]
[WhiteElo "2028"]
[BlackElo "1116"]
[TimeControl "300"]
[EndTime "15:55:46 PDT"]
[Termination "Doge_Dandolo won on time"]

1. Nf3 {[%clk 0:04:56.9]} 1... Nc6 {[%clk 0:04:57.8]} 2. e4 {[%clk 0:04:55.1]}
2... e5 {[%clk 0:04:57]} 3. Bc4 {[%clk 0:04:51.9]} 3... f5 {[%clk 0:04:55.7]} 4.
Nc3 {[%clk 0:04:48.8]} 4... fxe4 {[%clk 0:04:44.5]} 5. Ng1 {[%clk 0:04:46.8]}
5... d5 {[%clk 0:04:41.4]} 6. Bb5 {[%clk 0:04:45.3]} 6... Nf6 {[%clk 0:04:32.8]}
7. d3 {[%clk 0:04:43.7]} 7... exd3 {[%clk 0:04:22.1]} 8. Qxd3 {[%clk 0:04:41.9]}
8... e4 {[%clk 0:04:04]} 9. Qe2 {[%clk 0:04:39.6]} 9... Bc5 {[%clk 0:03:55.1]}
10. Bg5 {[%clk 0:04:37.7]} 10... O-O {[%clk 0:03:47.1]} 11. O-O-O {[%clk
0:04:36.3]} 11... Nd4 {[%clk 0:03:43.3]} 12. Qf1 {[%clk 0:04:32.4]} 12... c6
{[%clk 0:03:14.7]} 13. Ba4 {[%clk 0:04:28.1]} 13... Bg4 {[%clk 0:02:56.8]} 14.
f3 {[%clk 0:04:22.7]} 14... exf3 {[%clk 0:02:40.9]} 15. gxf3 {[%clk 0:04:18.8]}
15... Bh5 {[%clk 0:02:35.4]} 16. Qh3 {[%clk 0:04:10.9]} 16... Bg6 {[%clk
0:02:28]} 17. Nge2 {[%clk 0:03:59.5]} 17... Qe8 {[%clk 0:02:04.6]} 18. Nxd4
{[%clk 0:03:51.3]} 18... Bxd4 {[%clk 0:01:58]} 19. Rxd4 {[%clk 0:03:48.4]} 19...
h6 {[%clk 0:01:53.8]} 20. Bxf6 {[%clk 0:03:44.1]} 20... Rxf6 {[%clk 0:01:46.5]}
21. Rg4 {[%clk 0:03:42.3]} 21... Qe3+ {[%clk 0:01:31.6]} 22. Kb1 {[%clk
0:03:39.8]} 22... Rxf3 {[%clk 0:01:15.8]} 23. Qg2 {[%clk 0:03:33]} 23... Rf2
{[%clk 0:01:01]} 24. Qg3 {[%clk 0:03:22.3]} 24... Qxg3 {[%clk 0:00:51.5]} 25.
Rxg3 {[%clk 0:03:20.6]} 25... Raf8 {[%clk 0:00:38.5]} 26. a3 {[%clk 0:03:13.9]}
26... b5 {[%clk 0:00:26.2]} 27. Rxg6 {[%clk 0:03:11.7]} 27... bxa4 {[%clk
0:00:22.6]} 28. Rxc6 {[%clk 0:03:10.6]} 28... Rf1+ {[%clk 0:00:18.5]} 29. Ka2
{[%clk 0:03:08.9]} 29... Rxh1 {[%clk 0:00:16.2]} 30. Nxd5 {[%clk 0:03:06.3]}
30... Rxh2 {[%clk 0:00:14.8]} 31. Nb4 {[%clk 0:03:00.6]} 31... a5 {[%clk
0:00:10.6]} 32. Na6 {[%clk 0:02:56.6]} 32... Rf1 {[%clk 0:00:09.2]} 33. Rc4
{[%clk 0:02:50]} 33... Rhh1 {[%clk 0:00:08.6]} 34. Rxa4 {[%clk 0:02:48.7]} 34...
Ra1+ {[%clk 0:00:07]} 35. Kb3 {[%clk 0:02:47.6]} 35... Rh3+ {[%clk 0:00:05.5]}
36. c3 {[%clk 0:02:46.5]} 36... Rb1 {[%clk 0:00:03.3]} 37. Nc5 {[%clk 0:02:41]}
37... Rh2 {[%clk 0:00:02.7]} 38. Nd3 {[%clk 0:02:39.4]} 1-0

[Event "Live Chess"]
[Site "Chess.com"]
[Date "2023.05.20"]
[Round "-"]
[White "JoshMcK"]
[Black "mikkyb4"]
[Result "1-0"]
[WhiteElo "1519"]
[BlackElo "1031"]
[TimeControl "300"]
[EndTime "15:55:56 PDT"]
[Termination "JoshMcK won by resignation"]

1. e4 {[%clk 0:04:59.2]} 1... g6 {[%clk 0:04:59.3]} 2. d4 {[%clk 0:04:57.5]}
2... Bg7 {[%clk 0:04:58.2]} 3. Nf3 {[%clk 0:04:55.6]} 3... d6 {[%clk 0:04:56.7]}
4. Nc3 {[%clk 0:04:54.3]} 4... a6 {[%clk 0:04:55.4]} 5. a4 {[%clk 0:04:45.5]}
5... b6 {[%clk 0:04:52.1]} 6. Bc4 {[%clk 0:04:44]} 6... e6 {[%clk 0:04:50]} 7.
O-O {[%clk 0:04:42.3]} 7... Bb7 {[%clk 0:04:48.3]} 8. d5 {[%clk 0:04:40.1]} 8...
e5 {[%clk 0:04:46.9]} 9. Ng5 {[%clk 0:04:36.5]} 9... Qd7 {[%clk 0:04:25.7]} 10.
Qf3 {[%clk 0:04:32.6]} 10... f6 {[%clk 0:04:21.7]} 11. Ne6 {[%clk 0:04:29]}
11... Ne7 {[%clk 0:04:12.1]} 12. Nxg7+ {[%clk 0:04:26.5]} 12... Kf7 {[%clk
0:04:09.3]} 13. Ne6 {[%clk 0:04:25.1]} 1-0

[Event "Live Chess"]
[Site "Chess.com"]
[Date "2023.05.20"]
[Round "-"]
[White "AbilifyXL"]
[Black "Tushinskiy"]
[Result "0-1"]
[WhiteElo "1966"]
[BlackElo "2183"]
[TimeControl "300"]
[EndTime "15:56:01 PDT"]
[Termination "Tushinskiy won by resignation"]

1. d4 {[%clk 0:04:59.4]} 1... d5 {[%clk 0:04:58.6]} 2. c4 {[%clk 0:04:58.7]}
2... c6 {[%clk 0:04:58.5]} 3. Nc3 {[%clk 0:04:57.8]} 3... e6 {[%clk 0:04:57.4]}
4. cxd5 {[%clk 0:04:57.7]} 4... exd5 {[%clk 0:04:57.3]} 5. Nf3 {[%clk
0:04:51.8]} 5... Nf6 {[%clk 0:04:55.1]} 6. Bg5 {[%clk 0:04:50.7]} 6... Be7
{[%clk 0:04:54.4]} 7. e3 {[%clk 0:04:49.9]} 7... Bg4 {[%clk 0:04:53]} 8. Be2
{[%clk 0:04:49]} 8... Nbd7 {[%clk 0:04:51.8]} 9. O-O {[%clk 0:04:47.9]} 9... O-O
{[%clk 0:04:50.7]} 10. Qc2 {[%clk 0:04:47.2]} 10... Re8 {[%clk 0:04:48.1]} 11.
h3 {[%clk 0:04:46]} 11... Bh5 {[%clk 0:04:47]} 12. Rab1 {[%clk 0:04:44.7]} 12...
Bg6 {[%clk 0:04:45.8]} 13. Bd3 {[%clk 0:04:44]} 13... Ne4 {[%clk 0:04:45.2]} 14.
Bf4 {[%clk 0:04:41.3]} 14... Bf6 {[%clk 0:04:36]} 15. Rfc1 {[%clk 0:04:36.6]}
15... Rc8 {[%clk 0:04:33.4]} 16. b4 {[%clk 0:04:35.1]} 16... Nb6 {[%clk
0:04:25.8]} 17. Nd2 {[%clk 0:04:33.6]} 17... Nxd2 {[%clk 0:04:15]} 18. Qxd2
{[%clk 0:04:32.4]} 18... Nc4 {[%clk 0:04:11.7]} 19. Qe2 {[%clk 0:04:24.5]} 19...
Bxd4 {[%clk 0:04:03.4]} 20. Bxc4 {[%clk 0:04:20.2]} 20... Bxb1 {[%clk
0:03:46.6]} 21. Nxb1 {[%clk 0:04:18.8]} 21... dxc4 {[%clk 0:03:44.6]} 22. Qxc4
{[%clk 0:04:16.2]} 22... Bb6 {[%clk 0:03:39.9]} 23. Nc3 {[%clk 0:04:12.3]} 23...
Qe7 {[%clk 0:03:32.6]} 24. Na4 {[%clk 0:03:53.3]} 24... Rcd8 {[%clk 0:03:31.3]}
25. Nxb6 {[%clk 0:03:41.9]} 25... axb6 {[%clk 0:03:31.2]} 26. a4 {[%clk
0:03:39.6]} 26... h6 {[%clk 0:03:30.3]} 27. a5 {[%clk 0:03:38.3]} 27... bxa5
{[%clk 0:03:27.8]} 28. bxa5 {[%clk 0:03:37]} 28... Ra8 {[%clk 0:03:23.9]} 29.
Ra1 {[%clk 0:03:32.2]} 29... Ra6 {[%clk 0:03:19.7]} 30. Qb3 {[%clk 0:03:27.1]}
30... Rea8 {[%clk 0:03:11.8]} 31. Rb1 {[%clk 0:03:23]} 31... R8a7 {[%clk
0:03:03.7]} 32. Bb8 {[%clk 0:03:19]} 32... Ra8 {[%clk 0:03:01.2]} 33. Bf4 {[%clk
0:03:17.6]} 33... Rxa5 {[%clk 0:02:51.2]} 34. Qxb7 {[%clk 0:03:15.4]} 34... Qf6
{[%clk 0:02:46.1]} 35. Kh2 {[%clk 0:03:06.3]} 35... R5a7 {[%clk 0:02:39.5]} 36.
Qb3 {[%clk 0:02:59.7]} 36... Ra6 {[%clk 0:02:37.5]} 37. Rd1 {[%clk 0:02:58.1]}
37... Qe6 {[%clk 0:02:32.5]} 38. Qc3 {[%clk 0:02:51.9]} 38... Ra3 {[%clk
0:02:30.1]} 39. Qc5 {[%clk 0:02:47]} 39... R3a5 {[%clk 0:02:26.4]} 40. Qc3
{[%clk 0:02:45.4]} 40... Rd5 {[%clk 0:02:25.3]} 41. Rc1 {[%clk 0:02:43.1]} 41...
Rc8 {[%clk 0:02:24]} 42. Bg3 {[%clk 0:02:42.1]} 42... Qd7 {[%clk 0:02:20.6]} 43.
e4 {[%clk 0:02:40.4]} 43... Rd3 {[%clk 0:02:19.3]} 44. Qc4 {[%clk 0:02:39.2]}
44... c5 {[%clk 0:02:17.8]} 45. f4 {[%clk 0:02:35.7]} 45... Rd4 {[%clk
0:02:16.5]} 46. Qc2 {[%clk 0:02:33.9]} 46... c4 {[%clk 0:02:15.4]} 47. e5 {[%clk
0:02:30.1]} 47... c3 {[%clk 0:02:12.1]} 48. Re1 {[%clk 0:02:27.5]} 48... Rd2
{[%clk 0:02:10.7]} 49. Qc1 {[%clk 0:02:26.5]} 49... Qd5 {[%clk 0:02:06.5]} 50.
Rg1 {[%clk 0:02:23.8]} 50... c2 {[%clk 0:02:05]} 0-1